[Event "POL-chT 2 Liga 2019"]
[Site "Poronin"]
[Date "2019.09.07"]
[Round "1.33"]
[White "Jaskolka, Tomasz"]
[Black "Bajerlein, Dawid"]
[Result "1-0"]
[ECO "A45"]
[WhiteElo "2236"]
[BlackElo "2035"]
[Annotator "ChessBase"]
[PlyCount "67"]
[EventDate "2019.09.07"]
[EventType "team-tourn"]
[EventCountry "POL"]
[SourceTitle "playchess.com"]
[Source "ChessBase"]
[SourceQuality "1"]
[TimeControl "40/5400+30:1800+30"]

1. d4 {[%emt 0:00:00]} Nf6 {[%emt 0:00:00]} 2. Bf4 {[%emt 0:00:00]} g6 {[%emt 0:00:00]} 3. Nc3 {[%emt 0:00:00]} d5 {[%emt 0:00:00]} 4. e3 {[%emt 0:00:00]} Bg7 {[%emt 0:00:10]} 5. h4 {[%emt 0:00:00]} O-O {[%emt 0:01:16]} 6. h5 {[%emt 0:00:44]} c5 {[%emt 0:00:26]} 7. hxg6 {[%emt 0:01:04]} hxg6 {[%emt 0:00:09]} 8. Nf3 {[%emt 0:15:58]} Nc6 {[%emt 0:04:01]} 9. Ne5 {[%emt 0:16:43]} cxd4 {[%emt 0:14:18]} 10. Nxc6 {[%emt 0:07:08]} bxc6 {[%emt 0:00:38]} 11. exd4 {[%emt 0:00:03]} c5 {[%emt 0:19:12]} 12. dxc5 {[%emt 0:10:26]} e5 {[%emt 0:26:30]} 13. Bg5 {[%emt 0:15:11]} Qa5 {[%emt 0:09:11]} 14. Qd2 {[%emt 0:14:11]} Rd8 {[%emt 0:01:17]} 15. Ne4 {[%emt 0:04:02]} Qxd2+ {[%emt 0:00:04]} 16. Nxd2 {[%emt 0:00:03]} Bf5 {[%emt 0:02:28]} 17. Ba6 {[%emt 0:01:23]} Bxc2 {[%emt 0:05:46]} 18. Bb7 {[%emt 0:06:54]} Rab8 {[%emt 0:00:03]} 19. c6 {[%emt 0:00:09]} Re8 {[%emt 0:00:38]} 20. Bxf6 {[%emt 0:01:29]} Bxf6 {[%emt 0:00:04]} 21. g4 {[%emt 0:00:04]} d4 {[%emt 0:02:50]} 22. Rc1 {[%emt 0:01:55]} d3 {[%emt 0:00:01]} 23. Ne4 {[%emt 0:00:55]} Be7 {[%emt 0:00:49]} 24. Kd2 {[%emt 0:00:13]} f5 {[%emt 0:07:09]} 25. gxf5 {[%emt 0:00:03]} gxf5 {[%emt 0:00:04]} 26. Rcg1+ {[%emt 0:00:22]} Kf7 {[%emt 0:00:02]} 27. Rh7+ {[%emt 0:00:22]} Ke6 {[%emt 0:00:02]} 28. Rg6+ {[%emt 0:00:26]} Kd5 {[%emt 0:00:14]} 29. Rxe7 {[%emt 0:00:28]} Rxe7 {[%emt 0:01:14]} 30. c7+ {[%emt 0:00:03]} Rxb7 {[%emt 0:00:05]} 31. c8=Q {[%emt 0:00:04]} Kxe4 {[%emt 0:01:30]} 32. Qc6+ {[%emt 0:00:49]} Kf4 {[%emt 0:00:09]} 33. Rg3 {[%emt 0:00:27]} e4 {[%emt 0:02:30]} 34. Qd6+ {[%emt 0:00:07]} 1-0

[Event "POL-chT 2 Liga 2019"]
[Site "Poronin"]
[Date "2019.09.07"]
[Round "1.34"]
[White "Hemmerling, Jaroslaw"]
[Black "Lukasiewicz, Grzegorz"]
[Result "1/2-1/2"]
[ECO "D10"]
[WhiteElo "1910"]
[BlackElo "2164"]
[Annotator "ChessBase"]
[PlyCount "69"]
[EventDate "2019.09.07"]
[EventType "team-tourn"]
[EventCountry "POL"]
[SourceTitle "playchess.com"]
[Source "ChessBase"]
[SourceQuality "1"]
[TimeControl "40/5400+30:1800+30"]

1. d4 {[%emt 0:00:00]} d5 {[%emt 0:00:00]} 2. c4 {[%emt 0:00:00]} c6 {[%emt 0:00:00]} 3. e3 {[%emt 0:00:05]} e6 {[%emt 0:01:48]} 4. Nc3 {[%emt 0:00:17]} f5 {[%emt 0:00:42]} 5. Bd3 {[%emt 0:05:24]} Nf6 {[%emt 0:01:20]} 6. Qc2 {[%emt 0:00:39]} Be7 {[%emt 0:13:21]} 7. cxd5 {[%emt 0:30:47]} cxd5 {[%emt 0:07:01]} 8. Nge2 {[%emt 0:04:32]} O-O {[%emt 0:00:20]} 9. O-O {[%emt 0:03:11]} Nc6 {[%emt 0:00:49]} 10. a3 Bd6 {[%emt 0:04:02]} 11. f4 {[%emt 0:02:02]} Bd7 {[%emt 0:08:15]} 12. Bd2 {[%emt 0:00:13]} Rc8 {[%emt 0:05:48]} 13. b4 {[%emt 0:01:41]} Ne4 {[%emt 0:03:32]} 14. Be1 {[%emt 0:08:01]} Qe7 {[%emt 0:07:45]} 15. Qb3 {[%emt 0:01:19]} Kh8 {[%emt 0:01:12]} 16. Na4 {[%emt 0:14:44]} b6 {[%emt 0:06:41]} 17. Ba6 {[%emt 0:07:01]} Rc7 {[%emt 0:08:47]} 18. Nac3 {[%emt 0:00:02]} Nb8 {[%emt 0:00:18]} 19. Bd3 {[%emt 0:00:52]} a6 {[%emt 0:09:20]} 20. a4 {[%emt 0:10:30]} Rfc8 {[%emt 0:01:58]} 21. b5 {[%emt 0:00:44]} a5 {[%emt 0:00:30]} 22. Bxe4 {[%emt 0:00:37]} dxe4 {[%emt 0:03:47]} 23. Bd2 {[%emt 0:00:52]} Be8 {[%emt 0:04:19]} 24. Rac1 {[%emt 0:01:13]} Ba3 {[%emt 0:01:21]} 25. Ra1 {[%emt 0:00:03]} Bb4 {[%emt 0:00:10]} 26. Rac1 {[%emt 0:00:02]} Nd7 {[%emt 0:00:38]} 27. Nb1 {[%emt 0:00:14]} Bd6 {[%emt 0:00:17]} 28. Rxc7 {[%emt 0:00:25]} Rxc7 {[%emt 0:00:11]} 29. Rc1 {[%emt 0:00:06]} Nf6 {[%emt 0:01:20]} 30. Rxc7 {[%emt 0:05:06]} Bxc7 {[%emt 0:02:24]} 31. Na3 {[%emt 0:03:07]} Nd5 {[%emt 0:01:05]} 32. Nc4 {[%emt 0:00:08]} g5 {[%emt 0:00:28]} 33. Ne5 {[%emt 0:00:47]} gxf4 {[%emt 0:05:21]} 34. Nxf4 {[%emt 0:00:08]} Bf7 {[%emt 0:01:06]} 35. Qc4 {[%emt 0:01:07]} 1/2-1/2

[Event "POL-chT 2 Liga 2019"]
[Site "Poronin"]
[Date "2019.09.07"]
[Round "1.35"]
[White "Pulik, Krzysztof"]
[Black "Bernat, Marcin"]
[Result "1-0"]
[ECO "C10"]
[WhiteElo "2131"]
[BlackElo "2023"]
[Annotator "ChessBase"]
[PlyCount "29"]
[EventDate "2019.09.07"]
[EventType "team-tourn"]
[EventCountry "POL"]
[SourceTitle "playchess.com"]
[Source "ChessBase"]
[SourceQuality "1"]
[TimeControl "40/5400+30:1800+30"]

1. e4 {[%emt 0:00:00]} e6 {[%emt 0:00:00]} 2. d4 {[%emt 0:00:00]} d5 {[%emt 0:00:00]} 3. Nd2 {[%emt 0:00:00]} dxe4 {[%emt 0:00:47]} 4. Nxe4 {[%emt 0:00:00]} Nd7 {[%emt 0:00:05]} 5. Nf3 {[%emt 0:00:53]} Ngf6 {[%emt 0:00:09]} 6. Bd3 {[%emt 0:00:46]} Nxe4 {[%emt 0:01:16]} 7. Bxe4 {[%emt 0:00:05]} Nf6 {[%emt 0:00:09]} 8. Bd3 {[%emt 0:00:06]} c5 {[%emt 0:01:32]} 9. Be3 {[%emt 0:02:26]} Nd5 {[%emt 0:02:00]} 10. O-O {[%emt 0:02:05]} Nxe3 {[%emt 0:07:08]} 11. fxe3 {[%emt 0:03:37]} cxd4 {[%emt 0:00:18]} 12. Ne5 {[%emt 0:02:38]} Qd5 {[%emt 0:18:32]} 13. Nxf7 {[%emt 0:01:25]} Bd6 {[%emt 0:11:57]} 14. e4 {[%emt 0:02:34]} Qc5 {[%emt 0:01:33]} 15. Nxh8 {[%emt 0:00:16]} 1-0

[Event "POL-chT 2 Liga 2019"]
[Site "Poronin"]
[Date "2019.09.07"]
[Round "1.36"]
[White "Kupsik, Joanna"]
[Black "Lukasiewicz, Anna"]
[Result "0-1"]
[ECO "B35"]
[WhiteElo "1732"]
[BlackElo "2075"]
[Annotator "NA"]
[PlyCount "78"]
[EventDate "2019.09.07"]
[EventType "team-tourn"]
[EventCountry "POL"]
[SourceTitle "playchess.com"]
[Source "ChessBase"]
[SourceQuality "1"]
[TimeControl "40/5400+30:1800+30"]

1. e4 {[%emt 0:00:00]} c5 {[%emt 0:00:11]} 2. Nf3 {[%emt 0:00:00]} Nc6 {[%emt 0:00:13]} 3. d4 {[%emt 0:00:00]} cxd4 {[%emt 0:00:14]} 4. Nxd4 {[%emt 0:00:06]} g6 {[%emt 0:00:33]} 5. Nc3 {[%emt 0:00:36]} Bg7 {[%emt 0:00:30]} 6. Be3 {[%emt 0:00:34]} Nf6 {[%emt 0:00:54]} 7. Bc4 {[%emt 0:00:48]} O-O {[%emt 0:00:29]} 8. Bb3 {[%emt 0:00:32]} d6 {[%emt 0:00:42]} 9. O-O {[%emt 0:01:37]} Ng4 {[%emt 0:03:05]} 10. Nxc6 {[%emt 0:04:02]} bxc6 {[%emt 0:05:49]} 11. Bf4 {[%emt 0:02:10]} a5 {[%emt 0:08:58]} 12. Qd2 {[%emt 0:05:39]} Ba6 {[%emt 0:05:16]} 13. Rfe1 {[%emt 0:01:03]} Qc7 {[%emt 0:03:24]} 14. Rad1 {[%emt 0:03:04]} Ne5 {[%emt 0:17:28]} 15. Bh6 {[%emt 0:08:29]} Qa7 {[%emt 0:04:45]} 16. Be3 {[%emt 0:08:24]} c5 {[%emt 0:05:41]} 17. Nd5 {[%emt 0:15:39]} Bb5 {[%emt 0:03:11]} 18. Nc3 {[%emt 0:16:12]} Bc6 {[%emt 0:03:36]} 19. Bh6 {[%emt 0:02:13]} a4 {[%emt 0:15:26]} 20. Bxg7 {[%emt 0:00:56]} Kxg7 {[%emt 0:00:10]} 21. Bd5 {[%emt 0:00:09]} Bxd5 {[%emt 0:01:06]} 22. Qxd5 {[%emt 0:00:54]} Qa5 {[%emt 0:02:16]} 23. f4 {[%emt 0:03:03]} e6 {[%emt 0:03:14]} 24. Qxd6 {[%emt 0:02:28]} Nc4 {[%emt 0:00:11]} 25. Qe7 {[%emt 0:06:22]} Nxb2 {[%emt 0:01:01]} 26. Nd5 {[%emt 0:00:49]} exd5 {[%emt 0:01:55]} 27. Qe5+ {[%emt 0:00:07]} Kg8 {[%emt 0:00:07]} 28. Qxb2 {[%emt 0:00:08]} d4 {[%emt 0:06:05]} 29. Re2 {[%emt 0:01:48]} a3 {[%emt 0:00:38]} 30. Qa1 {[%emt 0:02:27]} Rab8 {[%emt 0:00:51]} 31. Rd3 {[%emt 0:00:54]} Rb2 {[%emt 0:00:36]} 32. Rb3 {[%emt 0:01:09]} Rb8 {[%emt 0:02:42]} 33. Rf2 {[%emt 0:02:15]} R8xb3 {[%emt 0:01:23]} 34. axb3 {[%emt 0:00:28]} a2 {[%emt 0:01:31]} 35. Rf1 {[%emt 0:02:19]} Rxc2 {[%emt 0:00:22]} 36. Rd1 {[%emt 0:02:29]} Qc3 {[%emt 0:01:09]} 37. Qxc3 {[%emt 0:00:49]} Rxc3 {[%emt 0:00:05]} 38. Ra1 {[%emt 0:00:05]} Rc2 {[%emt 0:00:16]} 39. h3 {[%emt 0:00:18]} d3 {[%emt 0:00:40]} 0-1

[Event "POL-chT 2 Liga 2019"]
[Site "Poronin"]
[Date "2019.09.07"]
[Round "1.37"]
[White "Nowicki, Bartosz"]
[Black "Oglaza, Oskar"]
[Result "0-1"]
[ECO "B90"]
[WhiteElo "2349"]
[BlackElo "2351"]
[Annotator "ChessBase"]
[PlyCount "54"]
[EventDate "2019.09.07"]
[EventType "team-tourn"]
[EventCountry "POL"]
[SourceTitle "playchess.com"]
[Source "ChessBase"]
[SourceQuality "1"]
[TimeControl "40/5400+30:1800+30"]

1. e4 {[%emt 0:01:17]} c5 {[%emt 0:00:00]} 2. Nf3 {[%emt 0:00:05]} d6 {[%emt 0:00:00]} 3. d4 {[%emt 0:00:04]} cxd4 {[%emt 0:00:00]} 4. Nxd4 {[%emt 0:00:03]} Nf6 {[%emt 0:00:00]} 5. Nc3 {[%emt 0:00:04]} a6 {[%emt 0:00:00]} 6. Be3 {[%emt 0:00:04]} e6 {[%emt 0:00:03]} 7. f3 {[%emt 0:00:06]} b5 {[%emt 0:00:08]} 8. Qd2 {[%emt 0:00:05]} b4 {[%emt 0:00:09]} 9. Na4 {[%emt 0:03:55]} Nbd7 {[%emt 0:06:15]} 10. O-O-O {[%emt 0:00:37]} Qa5 {[%emt 0:00:10]} 11. b3 {[%emt 0:00:08]} Bb7 {[%emt 0:00:05]} 12. g4 {[%emt 0:00:51]} Nc5 {[%emt 0:23:14]} 13. a3 {[%emt 0:00:13]} Nxa4 {[%emt 0:00:09]} 14. axb4 {[%emt 0:00:07]} Qc7 {[%emt 0:00:12]} 15. bxa4 {[%emt 0:00:07]} d5 {[%emt 0:00:02]} 16. e5 {[%emt 0:00:53]} Nd7 {[%emt 0:00:19]} 17. f4 {[%emt 0:00:10]} a5 {[%emt 0:00:15]} 18. bxa5 {[%emt 0:20:58]} Ba6 {[%emt 0:22:42]} 19. Nb5 {[%emt 0:07:19]} Bxb5 {[%emt 0:02:30]} 20. axb5 {[%emt 0:03:57]} Ba3+ {[%emt 0:00:05]} 21. Kb1 {[%emt 0:00:05]} O-O {[%emt 0:00:03]} 22. a6 {[%emt 0:09:15]} Rxa6 {[%emt 0:04:33]} 23. Bd4 {[%emt 0:13:35]} Rb8 {[%emt 0:09:24]} 24. c3 {[%emt 0:04:33]} Ra4 {[%emt 0:01:59]} 25. Qc2 {[%emt 0:08:33]} Qa5 {[%emt 0:00:32]} 26. Qb3 {[%emt 0:02:10]} Bc5 {[%emt 0:01:04]} 27. Kc1 {[%emt 0:07:47]} Ra3 {[%emt 0:00:39]} 0-1

[Event "POL-chT 2 Liga 2019"]
[Site "Poronin"]
[Date "2019.09.07"]
[Round "1.38"]
[White "Pacan-Milej, Kosma"]
[Black "Suliborski, Jakub"]
[Result "1-0"]
[ECO "A42"]
[WhiteElo "2287"]
[BlackElo "2169"]
[Annotator "ChessBase"]
[PlyCount "107"]
[EventDate "2019.09.07"]
[EventType "team-tourn"]
[EventCountry "POL"]
[SourceTitle "playchess.com"]
[Source "ChessBase"]
[SourceQuality "1"]
[TimeControl "40/5400+30:1800+30"]

1. d4 {[%emt 0:00:00]} g6 {[%emt 0:00:00]} 2. e4 {[%emt 0:00:01]} Bg7 {[%emt 0:00:03]} 3. c4 {[%emt 0:00:41]} d6 {[%emt 0:00:14]} 4. Nc3 {[%emt 0:00:25]} Nc6 {[%emt 0:00:40]} 5. d5 {[%emt 0:01:45]} Nd4 {[%emt 0:02:11]} 6. Be3 {[%emt 0:00:29]} e5 {[%emt 0:00:55]} 7. Nge2 {[%emt 0:02:19]} Nxe2 {[%emt 0:02:15]} 8. Bxe2 {[%emt 0:00:05]} f5 {[%emt 0:00:16]} 9. exf5 {[%emt 0:01:58]} Bxf5 {[%emt 0:00:11]} 10. g4 {[%emt 0:02:03]} Bd7 {[%emt 0:01:19]} 11. h4 c5 {[%emt 0:15:58]} 12. h5 {[%emt 0:09:44]} Qa5 {[%emt 0:13:28]} 13. hxg6 {[%emt 0:03:31]} hxg6 {[%emt 0:02:24]} 14. Rxh8 {[%emt 0:00:22]} Bxh8 {[%emt 0:00:04]} 15. Qc2 {[%emt 0:00:36]} Kf7 16. O-O-O {[%emt 0:04:28]} Nf6 {[%emt 0:14:39]} 17. g5 {[%emt 0:18:26]} Bf5 {[%emt 0:08:08]} 18. Bd3 {[%emt 0:02:01]} e4 {[%emt 0:04:57]} 19. Nxe4 {[%emt 0:12:12]} Nxe4 {[%emt 0:00:21]} 20. Bxe4 {[%emt 0:00:05]} Bxe4 {[%emt 0:00:04]} 21. Qxe4 {[%emt 0:00:08]} Re8 {[%emt 0:00:05]} 22. Qf4+ {[%emt 0:05:54]} Ke7 {[%emt 0:02:04]} 23. Rh1 {[%emt 0:01:43]} Be5 {[%emt 0:05:16]} 24. Rh7+ {[%emt 0:07:44]} Kd8 {[%emt 0:00:24]} 25. Qg4 {[%emt 0:01:40]} Re7 {[%emt 0:00:06]} 26. Rxe7 {[%emt 0:02:14]} Kxe7 {[%emt 0:00:07]} 27. Kb1 {[%emt 0:03:10]} Qe1+ {[%emt 0:01:19]} 28. Bc1 {[%emt 0:00:16]} Bd4 {[%emt 0:06:11]} 29. f3 {[%emt 0:01:58]} Qe2 {[%emt 0:00:14]} 30. Qe4+ {[%emt 0:03:12]} Qxe4+ {[%emt 0:00:14]} 31. fxe4 {[%emt 0:00:03]} Be5 {[%emt 0:00:05]} 32. Kc2 {[%emt 0:00:07]} a6 {[%emt 0:01:00]} 33. Kb3 {[%emt 0:03:22]} Kd7 {[%emt 0:01:05]} 34. Ka4 {[%emt 0:02:27]} Kc7 {[%emt 0:01:20]} 35. Ka5 {[%emt 0:02:49]} Bd4 {[%emt 0:01:52]} 36. a3 {[%emt 0:01:17]} Be5 {[%emt 0:01:20]} 37. b4 {[%emt 0:04:35]} cxb4 {[%emt 0:04:32]} 38. axb4 {[%emt 0:00:12]} Bd4 {[%emt 0:00:05]} 39. Bf4 {[%emt 0:02:45]} Kd7 {[%emt 0:01:07]} 40. Bd2 {[%emt 0:00:00]} Kc7 {[%emt 0:00:00]} 41. Bf4 {[%emt 0:24:18]} Kd7 {[%emt 0:00:49]} 42. b5 {[%emt 0:00:39]} axb5 {[%emt 0:00:29]} 43. Kxb5 {[%emt 0:00:36]} b6 {[%emt 0:03:08]} 44. Ka4 {[%emt 0:01:01]} Kc7 {[%emt 0:00:54]} 45. Kb3 {[%emt 0:00:02]} Bg7 {[%emt 0:06:06]} 46. Be3 {[%emt 0:00:47]} Bf8 {[%emt 0:00:39]} 47. Ka4 {[%emt 0:00:42]} Be7 {[%emt 0:00:09]} 48. Kb5 {[%emt 0:00:51]} Kb7 {[%emt 0:00:05]} 49. Bxb6 {[%emt 0:00:23]} Bxg5 {[%emt 0:00:06]} 50. e5 {[%emt 0:00:01]} dxe5 {[%emt 0:04:49]} 51. c5 {[%emt 0:00:05]} e4 {[%emt 0:00:57]} 52. c6+ {[%emt 0:00:03]} Ka8 {[%emt 0:00:06]} 53. d6 {[%emt 0:00:07]} e3 {[%emt 0:00:09]} 54. d7 {[%emt 0:00:08]} 1-0

[Event "POL-chT 2 Liga 2019"]
[Site "Poronin"]
[Date "2019.09.07"]
[Round "1.40"]
[White "Punin, Andrii"]
[Black "Kowalec, Maciej"]
[Result "0-1"]
[ECO "C18"]
[WhiteElo "2325"]
[BlackElo "2054"]
[Annotator "RC"]
[PlyCount "120"]
[EventDate "2019.09.07"]
[EventType "team-tourn"]
[EventCountry "POL"]
[SourceTitle "playchess.com"]
[Source "ChessBase"]
[SourceQuality "1"]
[TimeControl "40/5400+30:1800+30"]

1. e4 {[%emt 0:00:00]} e6 {[%emt 0:00:00]} 2. d4 {[%emt 0:00:00]} d5 {[%emt 0:00:00]} 3. Nc3 {[%emt 0:00:00]} Bb4 {[%emt 0:02:15]} 4. e5 {[%emt 0:00:00]} c5 {[%emt 0:00:44]} 5. a3 {[%emt 0:00:01]} Bxc3+ {[%emt 0:01:38]} 6. bxc3 {[%emt 0:00:07]} Ne7 {[%emt 0:03:31]} 7. Qg4 {[%emt 0:00:10]} Qc7 {[%emt 0:01:38]} 8. Qxg7 {[%emt 0:00:11]} Rg8 {[%emt 0:00:06]} 9. Qxh7 {[%emt 0:00:09]} cxd4 {[%emt 0:00:14]} 10. Ne2 {[%emt 0:00:07]} Nbc6 {[%emt 0:00:21]} 11. f4 {[%emt 0:00:09]} Bd7 {[%emt 0:01:00]} 12. h4 {[%emt 0:03:01]} dxc3 {[%emt 0:09:45]} 13. h5 {[%emt 0:00:10]} d4 {[%emt 0:14:23]} 14. h6 {[%emt 0:02:34]} O-O-O {[%emt 0:03:51]} 15. Qd3 {[%emt 0:00:41]} Be8 {[%emt 0:19:36]} 16. h7 {[%emt 0:02:09]} Rh8 {[%emt 0:00:24]} 17. g4 {[%emt 0:01:36]} Qb6 {[%emt 0:10:14]} 18. Bg2 {[%emt 0:00:59]} Na5 {[%emt 0:01:13]} 19. Be4 {[%emt 0:11:28]} Bb5 {[%emt 0:03:41]} 20. Qf3 {[%emt 0:03:35]} Qa6 {[%emt 0:01:49]} 21. f5 {[%emt 0:09:53]} d3 {[%emt 0:12:06]} 22. Nxc3 {[%emt 0:07:05]} dxc2 {[%emt 0:01:01]} 23. Bxc2 {[%emt 0:06:01]} Bd3 {[%emt 0:02:07]} 24. Ra2 {[%emt 0:15:20]} Qc4 {[%emt 0:03:48]} 25. Bd2 {[%emt 0:00:54]} Nec6 {[%emt 0:02:47]} 26. Qe3 {[%emt 0:09:21]} Bxc2 {[%emt 0:02:53]} 27. Rxc2 {[%emt 0:00:15]} Nd4 {[%emt 0:00:36]} 28. Rb2 {[%emt 0:02:04]} Qc6 {[%emt 0:00:18]} 29. Qe4 {[%emt 0:02:00]} Nc4 {[%emt 0:00:43]} 30. fxe6 {[%emt 0:07:47]} fxe6 {[%emt 0:00:39]} 31. Qxc6+ {[%emt 0:06:04]} bxc6 {[%emt 0:00:01]} 32. Ne4 {[%emt 0:05:15]} Nxb2 {[%emt 0:00:34]} 33. Nd6+ {[%emt 0:01:11]} Kd7 {[%emt 0:01:12]} 34. Bc3 {[%emt 0:01:32]} Nd3+ {[%emt 0:00:14]} 35. Kd2 {[%emt 0:01:27]} Nxe5 {[%emt 0:00:27]} 36. Nb7 {[%emt 0:00:20]} Ndf3+ {[%emt 0:00:48]} 37. Ke3 {[%emt 0:00:37]} Rdf8 {[%emt 0:00:40]} 38. Nc5+ {[%emt 0:00:56]} Ke7 {[%emt 0:00:06]} 39. Rb1 {[%emt 0:01:54]} Nxg4+ {[%emt 0:00:30]} 40. Ke2 {[%emt 0:00:00]} e5 {[%emt 0:00:00]} 41. Rb7+ {[%emt 0:00:48]} Kd6 {[%emt 0:02:52]} 42. Bb4 {[%emt 0:02:39]} Kd5 {[%emt 0:04:19]} 43. Rd7+ {[%emt 0:03:38]} Kc4 {[%emt 0:00:09]} 44. Ne6 {[%emt 0:00:15]} Rf6 {[%emt 0:02:34]} 45. Nd8 {[%emt 0:02:08]} Nd4+ {[%emt 0:00:40]} 46. Ke1 {[%emt 0:00:09]} Nc2+ {[%emt 0:01:23]} 47. Kd2 {[%emt 0:00:38]} Nxb4 {[%emt 0:01:41]} 48. axb4 {[%emt 0:00:53]} Rf2+ {[%emt 0:00:42]} 49. Ke1 {[%emt 0:00:27]} Rh2 {[%emt 0:00:43]} 50. Rg7 {[%emt 0:00:11]} Rxd8 {[%emt 0:01:54]} 51. Rg8 {[%emt 0:00:32]} Rxh7 {[%emt 0:00:26]} 52. Rxd8 {[%emt 0:00:07]} Kxb4 {[%emt 0:00:33]} 53. Rg8 Nf6 {[%emt 0:02:02]} 54. Rg6 {[%emt 0:00:37]} Rf7 {[%emt 0:00:13]} 55. Ke2 {[%emt 0:00:08]} c5 {[%emt 0:00:19]} 56. Rg1 {[%emt 0:00:06]} c4 {[%emt 0:00:22]} 57. Rb1+ {[%emt 0:00:05]} Kc5 {[%emt 0:00:20]} 58. Kd2 {[%emt 0:00:46]} Nd5 {[%emt 0:00:11]} 59. Re1 {[%emt 0:00:10]} Kd4 {[%emt 0:00:30]} 60. Kc1 {[%emt 0:00:53]} Nb4 {[%emt 0:00:48]} 0-1

[Event "POL-chT 2 Liga 2019"]
[Site "Poronin"]
[Date "2019.09.07"]
[Round "1.41"]
[White "Parol, Pola"]
[Black "Kowalczyk, Pawel"]
[Result "0-1"]
[ECO "B84"]
[WhiteElo "2062"]
[BlackElo "2294"]
[Annotator "ChessBase"]
[PlyCount "136"]
[EventDate "2019.09.07"]
[EventType "team-tourn"]
[EventCountry "POL"]
[SourceTitle "playchess.com"]
[Source "ChessBase"]
[SourceQuality "1"]
[TimeControl "40/5400+30:1800+30"]

1. e4 {[%emt 0:00:00]} c5 {[%emt 0:00:00]} 2. Nf3 {[%emt 0:00:00]} e6 {[%emt 0:00:00]} 3. d4 {[%emt 0:00:00]} cxd4 {[%emt 0:00:00]} 4. Nxd4 {[%emt 0:00:00]} Nf6 {[%emt 0:00:00]} 5. Nc3 {[%emt 0:00:07]} d6 {[%emt 0:00:06]} 6. Be2 {[%emt 0:00:57]} a6 {[%emt 0:00:09]} 7. O-O {[%emt 0:00:22]} Be7 {[%emt 0:00:59]} 8. f4 {[%emt 0:01:39]} Qc7 {[%emt 0:00:52]} 9. Be3 {[%emt 0:03:43]} b5 {[%emt 0:00:46]} 10. a3 {[%emt 0:02:10]} Bb7 {[%emt 0:00:10]} 11. Bf3 {[%emt 0:04:39]} Nbd7 {[%emt 0:04:55]} 12. Qe1 {[%emt 0:03:30]} Rc8 {[%emt 0:00:40]} 13. Qg3 {[%emt 0:04:29]} h5 {[%emt 0:00:02]} 14. Rae1 {[%emt 0:13:02]} Ng4 {[%emt 0:05:18]} 15. Bxg4 {[%emt 0:08:39]} hxg4 {[%emt 0:00:03]} 16. Qxg4 {[%emt 0:02:00]} Nf6 {[%emt 0:00:10]} 17. Qf3 {[%emt 0:01:54]} Qb8 {[%emt 0:00:05]} 18. Bf2 {[%emt 0:02:31]} Qa8 {[%emt 0:00:05]} 19. Re2 {[%emt 0:08:41]} Rc5 {[%emt 0:06:42]} 20. Rfe1 {[%emt 0:05:54]} Rch5 {[%emt 0:00:06]} 21. h3 {[%emt 0:03:13]} g5 {[%emt 0:00:23]} 22. fxg5 {[%emt 0:01:54]} Rxg5 {[%emt 0:00:28]} 23. Rf1 {[%emt 0:06:49]} Rh7 {[%emt 0:03:44]} 24. Qe3 {[%emt 0:04:22]} Rg8 {[%emt 0:06:18]} 25. Be1 {[%emt 0:03:47]} Nd7 {[%emt 0:02:36]} 26. Bg3 {[%emt 0:01:40]} Qc8 {[%emt 0:02:26]} 27. Nb3 {[%emt 0:01:18]} Rhg7 {[%emt 0:01:50]} 28. Bh2 {[%emt 0:01:35]} Ba8 {[%emt 0:00:31]} 29. Kh1 {[%emt 0:02:37]} f5 {[%emt 0:02:14]} 30. Qh6 {[%emt 0:03:23]} Rg6 {[%emt 0:01:29]} 31. Qf4 {[%emt 0:02:17]} Nf6 {[%emt 0:00:30]} 32. Rff2 {[%emt 0:01:24]} fxe4 {[%emt 0:00:15]} 33. Qe3 {[%emt 0:02:44]} e5 {[%emt 0:00:06]} 34. Nd2 {[%emt 0:01:57]} Nd5 {[%emt 0:04:47]} 35. Nxd5 {[%emt 0:00:33]} Bxd5 {[%emt 0:00:02]} 36. Nxe4 {[%emt 0:01:04]} Qc6 {[%emt 0:00:02]} 37. g4 {[%emt 0:02:54]} Bc4 {[%emt 0:04:26]} 38. Re1 {[%emt 0:00:32]} d5 {[%emt 0:00:38]} 39. b3 {[%emt 0:00:26]} d4 {[%emt 0:00:06]} 40. Qg3 {[%emt 0:00:00]} Bd5 {[%emt 0:00:00]} 41. Rfe2 {[%emt 0:04:52]} Re6 {[%emt 0:02:06]} 42. Kg1 {[%emt 0:03:15]} Kd7 {[%emt 0:04:56]} 43. Qd3 {[%emt 0:01:32]} Bxa3 {[%emt 0:00:29]} 44. Nd2 {[%emt 0:08:36]} Qc3 {[%emt 0:06:07]} 45. Qh7+ {[%emt 0:03:57]} Re7 {[%emt 0:00:17]} 46. Qf5+ {[%emt 0:00:10]} Be6 {[%emt 0:03:38]} 47. Qxe5 {[%emt 0:03:44]} Qxh3 {[%emt 0:04:20]} 48. Qc7+ {[%emt 0:01:50]} Ke8 {[%emt 0:00:01]} 49. Qc6+ {[%emt 0:02:07]} Kf8 {[%emt 0:04:38]} 50. Rf1+ {[%emt 0:01:02]} Bf7 {[%emt 0:01:42]} 51. Rg2 {[%emt 0:03:26]} Qe3+ {[%emt 0:03:30]} 52. Kh1 {[%emt 0:00:27]} Qe6 {[%emt 0:00:19]} 53. Qf3 {[%emt 0:00:59]} Rg6 {[%emt 0:00:19]} 54. Qf4 {[%emt 0:00:34]} Qd5 {[%emt 0:00:27]} 55. Nf3 {[%emt 0:00:26]} Kg8 {[%emt 0:04:02]} 56. Nh4 {[%emt 0:01:08]} Re2 {[%emt 0:03:57]} 57. Qb8+ {[%emt 0:01:00]} Bf8 {[%emt 0:00:58]} 58. Qg3 {[%emt 0:00:27]} Rxg2 {[%emt 0:00:35]} 59. Qxg2 {[%emt 0:00:32]} Rxg4 {[%emt 0:00:28]} 60. Qxd5 {[%emt 0:00:29]} Bxd5+ {[%emt 0:00:02]} 61. Nf3 {[%emt 0:00:02]} a5 {[%emt 0:00:51]} 62. Be5 {[%emt 0:00:23]} d3 {[%emt 0:01:26]} 63. cxd3 {[%emt 0:00:21]} Bxb3 {[%emt 0:00:02]} 64. Kh2 {[%emt 0:01:14]} Bd5 {[%emt 0:00:11]} 65. Rf2 {[%emt 0:00:34]} a4 {[%emt 0:00:06]} 66. d4 {[%emt 0:00:33]} a3 {[%emt 0:00:13]} 67. Nd2 {[%emt 0:00:23]} a2 {[%emt 0:00:07]} 68. Rf1 {[%emt 0:00:28]} Rg2+ {[%emt 0:00:05]} 0-1